bitfinex-derivatives/quotes_BNBF0:USTF0_20251219
["timestamp","ask_amount","ask_price","bid_price","bid_amount"]
[1766163967064,0.20486918,849.74,848.61,0.87845107]
[1766163968264,0.20486918,849.74,848.55,0.87845107]
[1766163971270,0.20486918,849.74,848.51,0.87845107]
[1766163971469,0.20486918,849.74,848.43,0.87845107]
[1766163973371,0.20486918,849.74,848.44,0.87845107]
[1766163974572,0.20486918,849.74,848.45,0.87845107]
[1766163976274,0.20486918,849.74,848.46,0.87845107]
[1766163980078,0.20486918,849.74,848.53,0.87845107]
[1766163980273,0.20486918,849.74,848.58,0.87845107]
[1766163983781,0.20486918,849.74,848.68,0.87845107]
[1766163983979,0.20486918,849.74,848.61,0.87845107]
[1766163984181,0.20486918,849.74,848.53,1.16800114]
[1766163984482,0.20486918,849.74,848.72,0.87741356]
[1766163985181,0.20486918,849.74,848.71,0.87741356]
[1766163986778,0.20486918,849.74,848.7,0.87741356]
[1766163989182,0.20486918,849.74,848.69,0.87741356]
[1766163993291,0.20486918,849.74,848.68,0.87741356]
[1766163995295,0.20486918,849.74,848.67,0.87741356]
[1766163996795,0.20486918,849.74,848.68,0.87741356]
[1766163996998,0.20486918,849.74,848.69,0.87741356]
[1766163997294,0.20486918,849.74,848.68,0.87741356]
[1766163999201,0.20486918,849.74,848.67,0.87741356]
[1766164001195,0.20486918,849.74,848.66,0.87741356]
[1766164005907,0.20486918,849.74,848.71,0.87741356]
[1766164006107,0.20486918,849.74,848.72,0.87741356]
[1766164006303,0.20486918,849.74,848.74,0.87741356]
[1766164007408,0.20486918,849.74,848.75,0.87741356]
[1766164008404,0.20486918,849.74,848.76,0.87741356]
[1766164009303,0.20486918,849.74,848.77,0.87741356]
[1766164010407,0.20486918,849.74,848.78,0.87741356]
[1766164011408,0.20486918,849.74,848.79,0.87741356]
[1766164012308,0.20486918,849.74,848.78,0.87741356]
[1766164012507,0.20486918,849.74,848.79,0.87741356]
[1766164013409,0.20486918,849.74,848.8,0.87741356]
[1766164014510,0.20486918,849.74,848.81,0.87741356]
[1766164015110,0.20486918,849.74,848.8,0.87741356]
[1766164015411,0.20486918,849.74,848.82,0.87741356]
[1766164016410,0.20486918,849.74,848.83,0.87741356]
[1766164016611,0.20486918,849.74,847.9,2.92000285]
[1766164016612,0.20486918,849.74,848.8,0.87741356]
[1766164016812,0.20486918,849.74,848.74,0.87741356]
[1766164017312,0.20486918,849.74,848.71,0.87741356]
[1766164017508,0.20486918,849.74,847.89,0.0083037]
[1766164017509,0.20486918,849.74,848.72,0.87741356]
[1766164018215,0.20486918,849.74,848.73,0.87741356]
[1766164018511,0.20486918,849.74,848.74,0.87741356]
[1766164019413,0.20486918,849.74,848.76,0.87741356]
[1766164021213,0.20486918,849.74,848.77,0.87741356]
[1766164021515,0.20486918,849.74,848.79,0.87741356]
[1766164021711,0.20486918,849.74,848.85,0.87741356]
[1766164022216,0.20486918,849.74,848.87,0.87741356]
[1766164023314,0.20486918,849.74,848.89,0.87741356]
[1766164026618,0.20486918,849.74,848.91,0.87741356]
[1766164026821,0.20486918,849.74,848.93,0.87741356]
[1766164027016,0.20486918,849.74,848.96,0.87741356]
[1766164027619,1.74854817,850.32,848.96,0.87741356]
[1766164028414,0.20480527,849.99,848.96,0.87741356]
[1766164031119,0.20480527,849.99,849.04,0.87741356]
[1766164031419,0.20480527,849.99,849.06,0.87741356]
[1766164033219,0.20480527,849.99,849.07,0.87741356]
[1766164034425,0.20480527,849.99,849.11,0.87741356]
[1766164035221,0.20480527,849.99,849.12,0.87741356]
[1766164035525,1.74854817,850.52,849.18,0.87741356]
[1766164035726,0.20475466,850.07,849.18,0.87741356]
[1766164035927,1.74854817,850.52,849.18,0.87741356]
[1766164036128,0.20474743,850.07,849.18,0.87741356]
[1766164036526,1.74854817,850.52,849.18,0.87741356]
[1766164037125,1.74854817,850.53,849.17,0.87741356]
[1766164037324,2.91424695,851.13,849.02,1.16800114]
[1766164037325,1.74854817,850.52,849.18,0.87741356]
[1766164037825,0.20474743,850.2,849.18,0.87741356]
[1766164038124,0.20474743,850.2,849.17,0.87741356]
[1766164038429,0.20474743,850.2,849.31,0.87741356]
[1766164038622,0.20474743,850.2,849.16,1.16800114]
[1766164038623,0.20474743,850.2,849.38,0.87741356]
[1766164038824,0.20474743,850.2,849.4,0.87741356]
[1766164039022,1.74854817,850.85,849.51,0.87741356]
[1766164039227,1.74854817,850.85,848.55,0.00868911]
[1766164039228,1.74854817,850.88,849.49,0.87741356]
[1766164039429,0.20468602,850.36,849.49,0.87741356]
[1766164039626,1.74854817,850.88,849.49,0.87741356]
[1766164039830,0.20467217,850.36,849.49,0.87741356]
[1766164040127,1.74854817,850.91,849.46,0.87741356]
[1766164040330,0.20467217,850.36,849.46,0.87741356]
[1766164040532,1.74854817,850.9,849.46,0.87741356]
[1766164040828,0.20469083,850.21,849.42,0.87741356]
[1766164041026,1.74854817,850.86,849.42,0.87741356]
[1766164041232,1.74854817,850.88,849.4,0.87741356]
[1766164041833,1.74854817,850.88,848.55,0.01292828]
[1766164041834,1.74854817,850.82,849.34,0.87741356]
[1766164042228,1.74854817,850.83,849.33,0.87741356]
[1766164042432,0.20470769,850.46,849.33,0.87741356]
[1766164043130,0.20470769,850.46,849.31,0.87741356]
[1766164043332,0.20470769,850.46,849.25,0.87741356]
[1766164043833,0.20470769,850.46,849.27,0.87741356]
[1766164044232,0.20470769,850.46,849.26,0.87741356]
[1766164045132,0.20470769,850.46,849.25,0.87741356]
[1766164046238,0.20470769,850.46,849.24,0.87741356]
[1766164048137,0.20470769,850.46,849.23,0.87741356]
[1766164050139,0.20470769,850.46,849.22,0.87741356]
[1766164052239,0.20470769,850.46,849.21,0.87741356]
[1766164054243,0.20470769,850.46,849.2,0.87741356]
[1766164057455,0.20470769,850.46,849.25,0.87741356]
[1766164057649,0.20470769,850.46,849.27,0.87741356]
[1766164058145,0.20470769,850.46,849.26,0.87741356]
[1766164058448,0.20470769,850.46,849.27,0.87741356]
[1766164059350,0.20470769,850.46,849.26,0.87741356]
[1766164073061,0.20470769,850.46,849.27,0.87741356]
[1766164073959,0.20470769,850.46,849.26,0.87741356]
[1766164074155,0.20470769,850.46,849.27,0.87741356]
[1766164075160,0.20470769,850.46,849.3,0.87741356]
[1766164075557,0.20470769,850.46,849.34,0.87741356]
[1766164077269,0.20470769,850.46,849.35,0.87741356]
[1766164077765,0.20470769,850.46,849.44,0.87741356]
[1766164078362,0.20470769,850.46,849.45,0.87741356]
[1766164078761,0.20470769,850.46,849.47,0.87741356]
[1766164079177,1.74854817,851.12,849.49,0.87741356]
[1766164079364,0.20460298,850.84,849.87,0.87741356]
[1766164079566,0.20460298,850.84,849.96,0.87741356]
[1766164079764,1.74854817,851.6,849.97,0.87741356]
[1766164079963,1.74854817,851.6,849.82,1.16800114]
[1766164079964,0.20453203,850.94,850.04,0.87741356]
[1766164080164,1.74854817,851.68,850.05,0.87741356]
[1766164081064,0.2045146,851.28,850.05,0.87741356]
[1766164081266,0.2045146,851.28,850.02,0.87741356]
[1766164082268,0.2045146,851.28,849.99,0.87741356]
[1766164082971,0.2045146,851.28,849.96,0.87741356]
[1766164083174,0.2045146,851.28,849.93,0.87741356]
[1766164084172,0.2045146,851.28,849.08,0.0143415]
[1766164084173,0.2045146,851.28,849.91,0.87741356]
[1766164085274,0.2045146,851.28,849.89,0.87741356]
[1766164086074,0.2045146,851.28,849.74,1.16800114]
[1766164086075,0.2045146,851.28,849.87,0.87741356]
[1766164087172,0.2045146,851.28,849.86,0.87741356]
[1766164088174,0.2045146,851.28,849.84,0.87741356]
[1766164089077,0.2045146,851.28,849.85,0.87741356]
[1766164089280,0.2045146,851.28,849.83,0.87741356]
[1766164090176,0.2045146,851.28,849.82,0.87741356]
[1766164090582,0.2045146,851.28,849.83,0.87741356]
[1766164091179,0.2045146,851.28,849.82,0.87741356]
[1766164091680,0.2045146,851.28,849.87,0.87741356]
[1766164092083,0.2045146,851.28,849.86,0.87741356]
[1766164092484,0.2045146,851.28,850.05,0.87741356]
[1766164092983,0.2045146,851.28,850.08,0.87741356]
[1766164093183,0.2045146,851.28,850.06,0.87741356]
[1766164094281,0.2045146,851.28,850.05,0.87741356]
[1766164095185,0.2045146,851.28,849.9,1.16800114]
[1766164095186,0.2045146,851.28,850.04,0.87741356]
[1766164096087,0.2045146,851.28,850.03,0.87741356]
[1766164096483,0.2045146,851.28,850.02,0.87741356]
[1766164097084,0.2045146,851.28,849.98,0.87741356]
[1766164097290,0.2045146,851.28,849.97,0.87741356]
[1766164098185,0.2045146,851.28,849.96,0.87741356]
[1766164099285,0.2045146,851.28,849.95,0.87741356]
[1766164099489,0.2045146,851.28,849.04,2.92000285]
[1766164099490,0.2045146,851.28,849.91,0.87741356]
[1766164100186,0.2045146,851.28,849.89,0.87741356]
[1766164101291,0.2045146,851.28,849.88,0.87741356]
[1766164103093,0.2045146,851.28,849.87,0.87741356]
[1766164103890,0.2045146,851.28,849.86,0.87741356]
[1766164104100,0.2045146,851.28,849.64,1.16800114]
[1766164104101,0.2045146,851.28,849.79,0.87741356]
[1766164104290,0.2045146,851.28,849.75,0.87741356]
[1766164106697,0.2045146,851.28,849.73,0.87741356]
[1766164110197,0.2045146,851.28,849.74,0.87741356]
[1766164111197,0.2045146,851.28,849.75,0.87741356]
[1766164113297,0.2045146,851.28,849.76,0.87741356]
[1766164114198,0.2045146,851.28,849.77,0.87741356]
[1766164114400,0.2045146,851.28,849.76,0.87741356]
[1766164115097,0.2045146,851.28,849.77,0.87741356]
[1766164116096,0.2045146,851.28,849.78,0.87741356]
[1766164117203,0.2045146,851.28,849.79,0.87741356]
[1766164118303,0.2045146,851.28,849.8,0.87741356]
[1766164119300,0.2045146,851.28,849.81,0.87741356]
[1766164121300,0.2045146,851.28,849.82,0.87741356]
[1766164122106,0.2045146,851.28,849.83,0.87741356]
[1766164123204,0.2045146,851.28,849.84,0.87741356]
[1766164124107,0.2045146,851.28,849.86,0.87741356]
[1766164125104,0.2045146,851.28,849.87,0.87741356]
[1766164126204,0.2045146,851.28,849.89,0.87741356]
[1766164127209,0.2045146,851.28,849.9,0.87741356]
[1766164127706,0.2045146,851.28,849.91,0.87741356]
[1766164128106,0.2045146,851.28,849.93,0.87741356]
[1766164129211,0.2045146,851.28,849.95,0.87741356]
[1766164130210,0.2045146,851.28,849.1,54.94199711]
[1766164130211,0.2045146,851.28,849.97,0.87741356]
[1766164131213,0.2045146,851.28,849.99,0.87741356]
[1766164132213,0.2045146,851.28,849.14,0.01250842]
[1766164132214,0.2045146,851.28,850.02,0.87741356]
[1766164133113,0.2045146,851.28,849.87,1.16800114]
[1766164133114,0.2045146,851.28,850.05,0.87741356]
[1766164133811,0.2045146,851.28,850.06,0.87741356]
[1766164134114,0.2045146,851.28,850.25,0.87741356]
[1766164134313,0.2045146,851.28,850.23,0.87741356]
[1766164135113,0.2045146,851.28,850.2,0.87741356]
[1766164135313,0.2045146,851.28,850.11,0.87741356]
[1766164136113,0.2045146,851.28,850.02,0.87741356]
[1766164136313,0.2045146,851.28,849.96,0.87741356]
[1766164137119,0.2045146,851.28,849.99,0.87741356]
[1766164137515,0.2045146,851.28,849.97,0.87741356]
[1766164137715,0.2045146,851.28,849.9,0.87741356]
[1766164138119,0.2045146,851.28,849.1,54.93026263]
[1766164138120,1.74854817,851.26,849.93,0.87741356]
[1766164138316,1.74854817,851.27,849.93,0.87741356]
[1766164139321,0.2045146,851.28,849.1,54.93026263]
[1766164139322,1.74854817,851.24,849.95,0.87741356]
[1766164141024,1.74854817,851.21,849.92,0.87741356]
[1766164141428,1.74854817,851.23,849.91,0.87741356]
[1766164141722,0.2045146,851.28,850.01,0.87741356]
[1766164142427,0.2045146,851.28,850.13,0.87741356]
[1766164142623,0.2045146,851.28,850.19,0.87741356]
[1766164142825,0.2045146,851.28,850.23,0.87741356]
[1766164143429,0.2045146,851.28,850.3,0.87741356]
[1766164143829,0.2045146,851.28,850.29,0.87741356]
[1766164144330,0.2045146,851.28,850.3,0.87741356]
[1766164145533,0.2045146,851.28,850.31,0.87741356]
[1766164145728,0.2045146,851.28,850.34,0.87741356]
[1766164145928,0.2045146,851.28,850.33,0.87741356]
[1766164146427,0.2045146,851.28,850.03,1.75200171]
[1766164146428,0.2045146,851.28,850.03,0.87741356]
[1766164147532,0.2045146,851.28,850.02,0.87741356]
[1766164148929,0.2045146,851.28,849.86,1.16800114]
[1766164148930,0.2045146,851.28,850.01,0.87741356]
[1766164151334,0.2045146,851.28,850.0,0.87741356]
[1766164151535,0.2045146,851.28,850.01,0.87741356]
[1766164152739,0.2045146,851.28,850.02,0.87741356]
[1766164153038,0.2045146,851.28,850.01,0.87741356]
[1766164153240,0.2045146,851.28,850.04,0.87741356]
[1766164153436,0.2045146,851.28,849.12,2.92000285]
[1766164153437,0.2045146,851.28,850.18,0.87741356]
[1766164153636,0.2045146,851.28,850.22,0.87741356]
[1766164154240,0.2045146,851.28,850.07,1.16800114]
[1766164154241,0.2045146,851.28,850.23,0.87741356]
[1766164155046,0.2045146,851.28,850.13,0.87741356]
[1766164155250,0.2045146,851.28,850.06,0.87741356]
[1766164155437,0.2045146,851.28,849.28,0.00832768]
[1766164155438,0.2045146,851.28,850.02,0.87741356]
[1766164155937,0.2045146,851.28,849.98,0.87741356]
[1766164156643,0.2045146,851.28,849.93,0.87741356]
[1766164156840,1.74854817,851.24,849.89,0.87741356]
[1766164157536,1.74854817,851.25,849.88,0.87741356]
[1766164158239,1.74854817,851.24,849.88,0.87741356]
[1766164158442,1.74854817,851.24,849.88,0.87902054]
[1766164158642,1.74854817,851.25,849.88,0.87902054]
[1766164160341,1.74854817,851.26,849.87,0.87902054]
[1766164160543,1.74854817,851.2,849.8,0.87902054]
[1766164160738,1.74854817,851.17,849.78,0.87902054]
[1766164161452,1.74854817,851.18,849.77,0.87902054]
[1766164162145,1.74854817,851.15,849.75,0.87902054]
[1766164162344,1.74854817,851.16,849.74,0.87902054]
[1766164162545,1.74854817,851.14,849.72,0.87902054]
[1766164162746,1.74854817,851.14,849.1,54.93026263]
[1766164162747,1.74854817,851.11,849.69,0.87902054]
[1766164163044,1.74854817,851.11,849.1,54.93026263]
[1766164163045,1.74854817,851.05,849.62,0.87902054]
[1766164163240,0.2045146,851.28,849.62,0.87902054]
[1766164163241,1.74854817,851.04,849.62,0.87902054]
[1766164163444,1.74854817,851.06,849.6,0.87902054]
[1766164164449,0.2045146,851.28,849.59,0.87902054]
[1766164164450,1.74854817,851.07,849.59,0.87902054]
[1766164164644,1.74854817,851.05,849.56,0.87902054]
[1766164164847,1.74854817,851.04,849.56,0.87902054]
[1766164165345,1.74854817,851.04,849.52,0.87902054]
[1766164166447,1.74854817,851.06,849.5,0.87902054]
[1766164167342,1.74854817,851.07,849.49,0.87902054]
[1766164167853,1.74854817,850.98,849.39,0.87902054]
[1766164168242,1.74854817,850.99,849.39,0.87902054]
[1766164168447,1.74854817,851.0,849.37,0.87902054]
[1766164168848,1.74854817,850.98,849.35,0.87902054]
[1766164169253,1.74854817,850.99,849.35,0.87902054]
[1766164169445,1.74854817,851.0,849.34,0.87902054]
[1766164170345,1.74854817,851.02,849.32,0.87902054]
[1766164171349,1.74854817,851.03,849.3,0.87902054]
[1766164171546,1.74854817,851.04,849.3,0.87902054]
[1766164171750,1.74854817,851.04,849.31,0.87902054]
[1766164171950,1.74854817,851.0,849.27,0.87902054]
[1766164172447,1.74854817,851.02,849.26,0.87902054]
[1766164172657,1.74854817,850.96,849.2,0.87902054]
[1766164173351,1.74854817,851.02,849.22,0.87902054]
[1766164173546,1.74854817,851.08,849.28,0.87902054]
[1766164174449,1.74854817,851.09,849.27,0.87902054]
[1766164175353,1.74854817,851.09,849.26,0.87902054]
[1766164175551,1.74854817,851.1,849.27,0.87902054]
[1766164175751,1.74854817,851.09,849.26,0.87902054]
[1766164176154,1.74854817,851.1,849.26,0.87902054]
[1766164176653,1.74854817,851.1,849.25,0.87902054]
[1766164176855,1.74854817,851.09,849.24,0.87902054]
[1766164177456,1.74854817,851.1,849.24,0.87902054]
[1766164177854,1.74854817,851.07,849.2,0.87902054]
[1766164178058,1.74854817,851.04,849.17,0.87902054]
[1766164178556,1.74854817,851.05,849.16,0.87902054]
[1766164178756,1.74854817,851.03,849.14,0.87902054]
[1766164179356,1.74854817,851.04,849.13,0.87902054]
[1766164180256,1.74854817,850.99,849.1,54.93026263]
[1766164180556,1.74854817,851.0,849.1,54.93026263]
[1766164182465,1.74854817,851.01,849.1,54.93026263]
[1766164183461,1.74854817,851.02,849.1,54.93026263]
[1766164184462,1.74854817,851.09,849.11,0.87902054]
[1766164185365,1.74854817,851.1,849.11,0.87902054]
[1766164186366,1.74854817,851.11,849.12,0.87902054]
[1766164187864,1.74854817,851.15,849.16,0.87902054]
[1766164188063,1.74854817,851.16,849.17,0.87902054]
[1766164189167,1.74854817,851.16,849.1,54.93026263]
[1766164189168,1.74854817,851.16,849.18,0.87902054]
[1766164191171,1.74854817,851.15,849.18,0.87902054]
[1766164192077,1.74854817,851.15,849.19,0.87902054]
[1766164192974,1.74854817,851.12,849.16,0.87902054]
[1766164193173,1.74854817,851.11,849.16,0.87902054]
[1766164194077,1.74854817,851.11,849.16,0.873327]
[1766164194277,1.74854817,851.1,849.18,0.873327]
[1766164195175,1.74854817,851.09,849.19,0.873327]
[1766164195372,1.74854817,851.11,849.21,0.873327]
[1766164196275,1.74854817,851.1,849.21,0.873327]
[1766164196579,1.74854817,851.1,849.22,0.873327]
[1766164201582,1.74854817,851.09,849.22,0.873327]
[1766164201878,1.74854817,851.1,849.22,0.873327]
[1766164202178,0.2045146,851.28,849.22,0.873327]
[1766164202179,1.74854817,851.09,849.22,0.873327]
[1766164202477,1.74854817,851.09,849.23,0.873327]
[1766164202980,1.74854817,851.11,849.25,0.873327]
[1766164203477,1.74854817,851.09,849.26,0.873327]
[1766164204382,1.74854817,851.08,849.28,0.873327]
[1766164205480,1.74854817,851.06,849.3,0.873327]
[1766164206082,1.74854817,851.07,849.31,0.873327]
[1766164206282,1.74854817,851.04,849.34,0.873327]
[1766164207386,1.74854817,851.04,849.35,0.873327]
[1766164207682,1.74854817,851.03,849.35,0.873327]
[1766164207885,1.74854817,851.04,849.35,0.873327]
[1766164208387,1.74854817,851.03,849.36,0.873327]
[1766164209388,1.74854817,851.02,849.37,0.873327]
[1766164209795,1.74854817,851.04,849.39,0.873327]
[1766164210090,1.74854817,851.21,849.56,0.873327]
[1766164210386,1.74854817,851.22,849.59,0.873327]
[1766164211086,1.74854817,851.11,849.48,0.873327]
[1766164211285,1.74854817,851.09,849.49,0.873327]
[1766164211586,1.74854817,851.08,849.48,0.873327]
[1766164211890,1.74854817,851.08,849.47,0.873327]
[1766164212390,1.74854817,851.07,849.49,0.873327]
[1766164212892,1.74854817,851.07,849.48,0.873327]
[1766164213094,1.74854817,851.07,849.49,0.873327]
[1766164213494,1.74854817,851.07,849.34,1.16800114]
[1766164213495,1.74854817,851.05,849.51,0.873327]
[1766164213793,1.74854817,851.0,849.47,0.873327]
[1766164214395,1.74854817,850.97,849.5,0.873327]
[1766164214597,1.74854817,850.94,849.47,0.873327]
[1766164214992,1.74854817,850.92,849.45,0.873327]
[1766164215496,1.74854817,850.9,849.47,0.873327]
[1766164216597,1.74854817,850.88,849.49,0.873327]
[1766164217299,1.74854817,850.88,849.48,0.873327]
[1766164217496,1.74854817,850.82,849.45,0.873327]
[1766164218599,1.74854817,850.78,849.44,0.873327]
[1766164219397,1.74854817,850.77,849.46,0.873327]
[1766164220400,1.74854817,850.75,849.48,0.873327]
[1766164220600,1.74854817,850.75,849.47,0.873327]
[1766164221301,1.74854817,850.74,849.49,0.873327]
[1766164222498,1.74854817,850.73,849.5,0.873327]
[1766164222804,1.74854817,850.72,849.5,0.873327]
[1766164223005,1.74854817,850.67,849.45,0.873327]
[1766164225404,1.74854817,850.67,849.46,0.873327]
[1766164227500,1.74854817,850.66,849.46,0.873327]
[1766164230508,1.74854817,850.67,849.46,0.873327]
[1766164230902,1.74854817,850.66,849.46,0.873327]
[1766164233009,1.74854817,850.71,849.51,0.873327]
[1766164233605,1.74854817,850.77,849.57,0.873327]
[1766164234006,1.74854817,850.78,849.58,0.873327]
[1766164234610,1.74854817,850.84,849.64,0.873327]
[1766164234811,1.74854817,850.85,849.65,0.873327]
[1766164235409,1.74854817,850.85,849.64,0.873327]
[1766164241410,1.74854817,850.84,849.64,0.873327]
[1766164241814,1.74854817,850.83,849.63,0.873327]
[1766164242915,1.74854817,850.82,849.62,0.873327]
[1766164243113,1.74854817,850.86,849.66,0.873327]
[1766164243413,1.74854817,851.01,849.82,0.873327]
[1766164243615,1.74854817,851.02,849.82,0.873327]
[1766164243817,1.74854817,851.02,849.83,0.873327]
[1766164244012,1.74854817,851.03,849.83,0.873327]
[1766164244317,1.74854817,851.07,849.85,0.873327]
[1766164245417,1.74854817,851.08,849.83,0.873327]
[1766164246413,1.74854817,851.09,849.82,0.873327]
[1766164247118,1.74854817,851.07,849.8,0.873327]
[1766164247319,1.74854817,851.05,849.77,0.873327]
[1766164248415,1.74854817,851.06,849.77,0.873327]
[1766164249416,1.74854817,851.07,849.76,0.873327]
[1766164250320,1.74854817,851.03,849.72,0.873327]
[1766164251322,1.74854817,851.04,849.71,0.873327]
[1766164253123,1.74854817,851.0,849.67,0.873327]
[1766164253521,1.74854817,851.0,849.66,0.873327]
[1766164255424,1.74854817,851.01,849.66,0.873327]
[1766164255720,1.74854817,851.0,849.66,0.873327]
[1766164256525,1.74854817,851.01,849.66,0.873327]
[1766164257425,1.74854817,851.01,849.65,0.873327]
[1766164259525,1.74854817,851.02,849.65,0.873327]
[1766164260021,1.74854817,851.02,849.66,0.873327]
[1766164260226,1.74854817,851.09,849.72,0.873327]
[1766164260427,1.74854817,851.11,849.74,0.873327]
[1766164261524,1.74854817,851.15,849.78,0.873327]
[1766164262123,1.74854817,851.15,849.63,1.16800114]
[1766164262327,1.74854817,851.16,849.77,0.87880637]
[1766164262928,1.74854817,851.21,849.82,0.87880637]
[1766164263225,0.2045146,851.28,849.97,0.87880637]
[1766164264129,0.2045146,851.28,849.96,0.87880637]
[1766164264429,0.2045146,851.28,849.97,0.87880637]
[1766164264824,0.2045146,851.28,849.98,0.87880637]
[1766164265325,0.2045146,851.28,849.97,0.87880637]
[1766164265623,0.2045146,851.28,849.98,0.87880637]
[1766164266425,0.2045146,851.28,849.82,1.16800114]
[1766164266426,0.2045146,851.28,849.97,0.87880637]
[1766164266827,0.2045146,851.28,849.97,0.87788959]
[1766164267933,0.2045146,851.28,849.96,0.87788959]
[1766164268333,0.2045146,851.28,849.95,0.87788959]
[1766164268536,0.2045146,851.28,849.94,0.87788959]
[1766164269136,0.2045146,851.28,849.93,0.87788959]
[1766164272135,0.2045146,851.28,849.92,0.87788959]
[1766164273037,0.2045146,851.28,849.83,0.87788959]
[1766164273438,0.2045146,851.28,849.82,0.87788959]
[1766164274535,0.2045146,851.28,849.81,0.87788959]
[1766164275041,0.2045146,851.28,849.82,0.87788959]
[1766164275242,0.2045146,851.28,849.81,0.87788959]
[1766164276140,0.2045146,851.28,849.8,0.87788959]
[1766164277339,0.2045146,851.28,849.79,0.87788959]
[1766164280144,0.2045146,851.28,849.78,0.87788959]
[1766164280741,0.2045146,851.28,849.66,0.87788959]
[1766164281141,1.74854817,851.32,849.66,0.87788959]
[1766164281341,0.20458854,850.88,849.66,0.87788959]
[1766164283043,0.20458854,850.88,849.74,0.87788959]
[1766164283447,0.20458854,850.88,849.75,0.87788959]
[1766164285348,0.20458854,850.88,849.76,0.87788959]
[1766164287349,0.20458854,850.88,849.77,0.87788959]
[1766164288750,0.20458854,850.88,849.68,0.87788959]
[1766164288945,0.20458854,850.88,849.63,0.87788959]
[1766164289348,0.20458854,850.88,849.6,0.87788959]
[1766164290350,0.20458854,850.88,849.61,0.87788959]
[1766164291452,0.20458854,850.88,849.62,0.87788959]
[1766164291747,0.20458854,850.88,849.58,0.87788959]
[1766164292352,0.20458854,850.88,849.59,0.87788959]
[1766164293453,0.20458854,850.88,849.6,0.87788959]
[1766164295353,0.20458854,850.88,849.61,0.87788959]
[1766164298350,0.20458854,850.88,849.62,0.87788959]
[1766164299256,0.20458854,850.88,849.59,0.87788959]
[1766164299653,0.20458854,850.88,849.55,0.87788959]
[1766164299957,0.20458854,850.88,849.52,0.87788959]
[1766164301757,0.20458854,850.88,849.51,0.87788959]
[1766164304062,0.20458854,850.88,849.55,0.87788959]
[1766164304363,0.20458854,850.88,849.58,0.87788959]
[1766164304864,0.20458854,850.88,849.61,0.87788959]
[1766164305562,0.20458854,850.88,849.64,0.87788959]
[1766164305958,0.20458854,850.88,848.85,53.07775681]
[1766164305959,0.20458854,850.88,849.67,0.87788959]
[1766164307762,0.20458854,850.88,849.57,0.87788959]
[1766164308361,0.20458854,850.88,849.56,0.87788959]
[1766164308868,0.20458854,850.88,849.61,0.87788959]
[1766164309068,0.20458854,850.88,849.66,0.87788959]
[1766164310167,0.20458854,850.88,849.67,0.87788959]
[1766164310362,0.20458854,850.88,849.66,0.87788959]
[1766164313069,0.20458854,850.88,849.64,0.87788959]
[1766164313270,0.20458854,850.88,849.65,0.87788959]
[1766164313570,0.20458854,850.88,849.64,0.87788959]
[1766164318176,0.20458854,850.88,849.61,0.87788959]
[1766164318370,0.20458854,850.88,849.6,0.87788959]
[1766164318573,0.20458854,850.88,849.55,0.87788959]
[1766164318774,0.20458854,850.88,849.49,0.87788959]
[1766164319174,0.20458854,850.88,849.48,0.87788959]
[1766164323077,0.20458854,850.88,849.5,0.87788959]
[1766164326273,0.20458854,850.88,849.49,0.87788959]
[1766164327675,0.20458854,850.88,849.53,0.87788959]
[1766164327879,0.20458854,850.88,849.56,0.87788959]
[1766164328277,0.20458854,850.88,849.57,0.87788959]
[1766164329277,0.20458854,850.88,849.58,0.87788959]
[1766164331482,0.20458854,850.88,849.62,0.87788959]
[1766164331778,0.20458854,850.88,848.85,53.07775681]
[1766164331779,0.20458854,850.88,849.69,0.87788959]
[1766164332583,0.20458854,850.88,849.76,0.87788959]
[1766164333181,0.20458854,850.88,849.77,0.87788959]
[1766164335188,0.20458854,850.88,849.78,0.87788959]
[1766164336289,0.20458854,850.88,849.79,0.87788959]
[1766164337191,0.20458854,850.88,849.8,0.87788959]
[1766164338191,0.20458854,850.88,849.81,0.87788959]
[1766164340193,0.20458854,850.88,849.82,0.87788959]
[1766164341294,0.20458854,850.88,849.83,0.87788959]
[1766164344197,0.20458854,850.88,849.84,0.87788959]
[1766164344391,0.20458854,850.88,849.68,1.16800114]
[1766164344392,0.20458854,850.88,849.83,0.87788959]
[1766164345197,0.20458854,850.88,849.84,0.87788959]
[1766164348199,0.20458854,850.88,849.85,0.87788959]
[1766164350401,0.20458854,850.88,849.84,0.87788959]
[1766164360107,1.74854817,851.13,849.83,0.87788959]
[1766164360605,1.74854817,851.12,849.83,0.87788959]
[1766164361306,1.74854817,851.12,849.84,0.87788959]
[1766164361506,1.74854817,851.12,849.84,0.87942758]
[1766164361907,1.74854817,851.12,849.83,0.87942758]
[1766164362207,1.74854817,851.12,849.84,0.87942758]
[1766164363105,1.74854817,851.08,849.8,0.87942758]
[1766164363409,1.74854817,851.07,849.8,0.87942758]
[1766164363905,0.20459877,850.76,849.8,0.87942758]
[1766164367307,0.20459877,850.76,849.65,1.16800114]
[1766164367308,0.20459877,850.76,849.82,0.87942758]
[1766164367612,0.20459877,850.76,849.86,0.87942758]
[1766164367813,0.20459877,850.76,849.03,0.20459877]
[1766164367814,0.20459877,850.76,849.92,0.87942758]
[1766164368012,1.74854817,851.2,849.92,0.87942758]